Cogmind - Beta 16 @@@ ROGUE MODE // 2025.12.30 @ 19:48:47 Player: Duduxx Result: Smashed by cave-in Performance ------------- Evolutions (0) 0 Regions Visited (2) 400 Robots Destroyed (7) 35 Value Destroyed (252) 252 Prototype IDs (0) 0 Alien Tech Used (0) 0 Bonus (0) 0 TOTAL SCORE: 687 Bonus ------- None Cogmind --------- Core Integrity 0/250 Matter 232/300 Energy 123/125 System Corruption 5% Temperature Cool (1) Movement Core (250) Ox4 Location -10/Subcaves Parts ------- > --- POWER (1) -------- Light Ion Engine > --- PROPULSION (2) --- (None) > --- UTILITY (2) ------ Small Storage Unit Subdweller Optics > --- WEAPON (2) ------- Barrage Gun > --- INVENTORY (8) ---- Subdweller Power Source Subdweller Power Source Wheel Compact Wheel Subdweller Laser Makeshift Laser Assault Rifle Subdweller Shrapnel Launcher Peak State ------------ > --- POWER ------------ Subdweller Power Source > --- PROPULSION ------- Light Treads > --- UTILITY ---------- Small Storage Unit Seismic Detector > --- WEAPON ----------- Barrage Gun Makeshift Axe > --- INVENTORY -------- Light Ion Engine Subdweller Power Source Wheel Compact Wheel Subdweller Laser Makeshift Laser Assault Rifle Subdweller Shrapnel Launcher [Rating: 13] Favorites ----------- Power Ion Engine Engine Ion Engine Propulsion Light Treads Treads Light Treads Utility Small Storage Unit Device Seismic Detector Storage Small Storage Unit Weapon Assault Rifle Energy Gun Subdweller Laser Ballistic Gun Assault Rifle Slashing Weapon Makeshift Axe Build | -11 -10 -10 ------- Run | Yrd Mat Sub Slots Evolved . | . . . Power . | . . . Propulsion . | . . . Utility . | . . . Weapon . | . . . Parts Attached 13 | 7 . 6 Power 3 | 1 . 2 Engine 3 | 1 . 2 Core . | . . . Reactor . | . . . Propulsion 2 | 2 . . Treads 2 | 2 . . Leg . | . . . Wheel . | . . . Hover . | . . . Flight . | . . . Utility 3 | 2 . 1 Device 2 | 1 . 1 Storage 1 | 1 . . Processor . | . . . Hackware . | . . . Protection . | . . . Artifact . | . . . Weapon 5 | 2 . 3 Energy Gun 2 | 1 . 1 Energy Cannon . | . . . Ballistic Gun 2 | 1 . 1 Ballistic Cannon . | . . . Launcher . | . . . Special Weapon . | . . . Impact Weapon . | . . . Slashing Weapon 1 | . . 1 Piercing Weapon . | . . . Special Melee Weapon . | . . . Unidentified Prototypes . | . . . Parts Lost 5 | . . 5 Power . | . . . Propulsion 2 | . . 2 Utility 1 | . . 1 Weapon 2 | . . 2 Highest Loss Streak 2 | . . 2 To Critical Strikes . | . . . Average Backups 5 | 1 3 6 Power 1 | . 1 1 Propulsion 1 | 1 2 2 Utility . | . . . Weapon 2 | . . 2 Tool/Special . | . . . Unused Backups 6 | . . 6 Power 2 | . . 2 Propulsion 2 | . . 2 Utility . | . . . Weapon 2 | . . 2 Tool/Special . | . . . Average Slot Usage (%) 94 | . 100 93 Engine 14 | . 14 14 Treads 23 | . 28 23 Device 13 | . 14 13 Storage 14 | . 14 14 Energy Gun 5 | . 14 5 Ballistic Gun 15 | . 14 15 Slashing Weapon 5 | . . 5 Peak Build Rating 13 | 7 7 13 Average Rating 9 | 5 7 9 On Entrance 4 | . 7 7 Avg Prop Armor Cover (%) . | . . . Naked Turns . | . . . Heaviest Build 17 | 15 15 17 Greatest Support 40 | 40 40 40 Greatest Overweight (x) . | . . . Average Overweight (x) . | . . . Largest Inventory Capacity 8 | 8 8 8 Average Capacity 7 | 6 8 8 Most Carried 8 | 3 3 8 Average Carried 6 | 1 3 6 Final Capacity 8 | 8 8 8 Final Carried 8 | 3 3 8 Class Distribution -------------------- 100% | Mutant Dominant Class ---------------- Mutant | -10/Materials Mutant | -10/Subcaves Resources | -11 -10 -10 ----------- Run | Yrd Mat Sub Matter Collected 488 | 253 . 235 Remotely . | . . . Salvage Created 278 | 19 . 259 Parts 25 | 4 . 21 Haulers Intercepted . | . . . Recyclers Shooed . | . . . Parts Field Recycled . | . . . Retrieved Matter . | . . . Parts Self-Destructed 3 | . . 3 Prevented . | . . . Parts Restored . | . . . Kills | -11 -10 -10 ------- Run | Yrd Mat Sub Combat Hostiles Destroyed 6 | . . 6 Guns 6 | . . 6 Classes Destroyed 3 | 1 . 2 Tunneler 1 | 1 . . Sentry 1 | . . 1 Subdweller 5 | . . 5 Best Kill Streak 2 | 1 . 2 Combat Bots Only 2 | . . 2 Max Kills in Single Turn 1 | 1 . 1 Gunslinging . | . . . Exploded . | . . . Melee . | . . . Uniques/NPCs Destroyed . | . . . Combat | -11 -10 -10 -------- Run | Yrd Mat Sub Hostile Shots Fired 41 | . . 41 Missed 9 | . . 9 Hits 32 | . . 32 Projectile 32 | . . 32 Damage Taken 1018 | . . 1018 Core 306 | . . 306 Absorbed by Shields . | . . . Core Remaining (%) 100 | 100 . . Volleys Fired 43 | 1 . 42 Largest 2 | 2 . 2 Hottest 80 | 60 . 80 Shots Fired 69 | 2 . 67 Gun 69 | 2 . 67 Cannon . | . . . Launcher . | . . . Special . | . . . Kinetic 61 | 1 . 60 Thermal 6 | . . 6 Explosive . | . . . Electromagnetic 2 | 1 . 1 Robot Hit Streak 14 | 1 . 14 Robot Miss Streak 2 | . . 2 Penetration Max . | . . . Secondary Targets . | . . . Shots Hit Robots 46 | 1 . 45 Core Hits 14 | 1 . 13 Critical Kills . | . . . Critical Parts Destroyed . | . . . Critical Strikes . | . . . Melee Attacks 39 | . . 39 Impact . | . . . Slashing 39 | . . 39 Piercing . | . . . Sneak Attacks 1 | . . 1 Combat Hostiles . | . . . Follow-up Attacks . | . . . Damage Inflicted 638 | 14 . 624 Guns 566 | 14 . 552 Cannons . | . . . Explosions . | . . . Melee 72 | . . 72 Ramming . | . . . Kinetic 485 | 14 . 471 Thermal 81 | . . 81 Explosive . | . . . Electromagnetic . | . . . Impact . | . . . Slashing 72 | . . 72 Piercing . | . . . Highest Corruption . | . . . Average Corruption . | . . . Corruption Purged . | . . . Corruption Blocked . | . . . Overload Shots . | . . . Overflow Damage 12 | . . 12 Projectiles . | . . . Explosions . | . . . Melee 12 | . . 12 Knockbacks . | . . . Impact . | . . . Kinetic . | . . . Secondary . | . . . Self-Inflicted Damage . | . . . Shots . | . . . Rammed . | . . . Targets Rammed . | . . . Kicked . | . . . Crushed . | . . . Highest Temperature . | . . . Average Temperature . | . . . Received Heat Transfer 171 | . . 171 Siege Activations . | . . . Martial Activations . | . . . Shielding Activations . | . . . Robots Disrupted . | . . . Combat Hostiles . | . . . Robots Corrupted . | . . . Combat Hostiles . | . . . Parts Fried . | . . . Impact Corruptions . | . . . Robots Melted . | . . . Combat Hostiles . | . . . Parts Melted 2 | . . 2 Heat Transferred 100 | . . 100 Parts Sabotaged . | . . . Parts Stolen . | . . . Parts Stripped . | . . . Power Chain Reactions . | . . . Alert | -11 -10 -10 ------- Run | Yrd Mat Sub Maximum Alert Level . | . . . Low Security (%) 100 | 100 100 . Level 1 . | . . . Level 2 . | . . . Level 3 . | . . . Level 4 . | . . . Level 5 . | . . . High Security . | . . . Max Security . | . . . Peak Influence 5 | 5 . . Initial . | . . . Average . | . . . Influence Increases 25 | 5 . 20 Destroy 0b10 Robot/C 20 | . . 20 Destroy 0b10 Robot/NC 5 | 5 . . Influence Decreases 25 | 5 . 20 Time Decay 25 | 5 . 20 Squads Dispatched . | . . . Investigation . | . . . Extermination . | . . . Reinforcement . | . . . Assault . | . . . Garrison . | . . . Intercept . | . . . Searches Triggered . | . . . Construction Impeded . | . . . Haulers Reinforced . | . . . Active Scanning Responses . | . . . Cargo Convoy Interrupts . | . . . Stealth | -11 -10 -10 --------- Run | Yrd Mat Sub Distress Signals . | . . . Communications Jammed . | . . . Distress Signals . | . . . Times Spotted 7 | . . 7 Peak Tracking Total 2 | . . 2 Tactical Retreats . | . . . Traps | -11 -10 -10 ------- Run | Yrd Mat Sub Traps Triggered . | . . . Indirectly . | . . . Trap Hack Attempts . | . . . Triggered . | . . . Disarmed . | . . . Reprogrammed . | . . . Reused . | . . . Traps Extracted . | . . . Installed . | . . . Triggered . | . . . Machines | -11 -10 -10 ---------- Run | Yrd Mat Sub Machines Disabled . | . . . Max in Single Turn . | . . . Machines Repaired . | . . . Machines Dismantled . | . . . Machines Sabotaged . | . . . Overloaded Fab Kills . | . . . Hacking | -11 -10 -10 --------- Run | Yrd Mat Sub Machines Accessed . | . . . Terminals . | . . . Fabricators . | . . . Repair Stations . | . . . Recycling Units . | . . . Scanalyzers . | . . . Garrison Access . | . . . Total Hacks . | . . . Successful . | . . . Failed . | . . . Catastrophic . | . . . Database Lockouts . | . . . Manual . | . . . Terminals . | . . . Fabricators . | . . . Repair Stations . | . . . Recycling Units . | . . . Scanalyzers . | . . . Garrison Access . | . . . Terminal Hacks . | . . . Fabricator Hacks . | . . . Repair Station Hacks . | . . . Recycling Unit Hacks . | . . . Scanalyzer . | . . . Garrison Access Hacks . | . . . Unauthorized Hacks . | . . . Terminals . | . . . Fabricators . | . . . Repair Stations . | . . . Recycling Units . | . . . Scanalyzers . | . . . Garrison Access . | . . . Data Cores Recovered . | . . . Used . | . . . Hacking Detections . | . . . Full Trace Events . | . . . Feedback Events . | . . . Feedback Blocked . | . . . Robot Schematics Acquired . | . . . Robots Built . | . . . Authchips . | . . . Time . | . . . Total Robot Build Rating . | . . . Part Schematics Acquired . | . . . Parts Built . | . . . Authchips . | . . . Time . | . . . Total Part Build Rating . | . . . Part Studies Acquired . | . . . Parts Repaired . | . . . Time . | . . . Parts Recycled . | . . . Recycled Matter . | . . . Retrieved Matter . | . . . Retrieved Components . | . . . Parts Scanalyzed . | . . . Part Schematics Acquired . | . . . Parts Damaged . | . . . Bothacking | -11 -10 -10 ------------ Run | Yrd Mat Sub Used RIF Installer . | . . . Robots Hacked . | . . . Non-combat . | . . . Combat . | . . . Robot Hacks Applied . | . . . Relay Couplers Released . | . . . Fabnet Peak Effective % . | . . . Robots Rewired . | . . . Allies Hacked . | . . . Hacks Repelled . | . . . Allies | -11 -10 -10 -------- Run | Yrd Mat Sub Total Allies . | . . . Largest Group . | . . . Highest-Rated Group . | . . . Highest-Rated Ally . | . . . Total Orders . | . . . Ally Attacks . | . . . Total Damage . | . . . Kills . | . . . Allies Corrupted . | . . . Allies Melted . | . . . Intel | -11 -10 -10 ------- Run | Yrd Mat Sub Active Infowar (turns) 1825 | 29 89 1707 Optics 144 | . . 144 Seismic 1681 | 29 89 1563 Robot Analysis Total . | . . . Derelict Logs Recovered 1 | . . 1 Drone Launches . | . . . Drone Recoveries . | . . . Exploration | -11 -10 -10 ------------- Run | Yrd Mat Sub Turns Passed 1900 | 84 89 1727 Spaces Moved 966 | 45 24 897 Core 3 | 3 . . Treads 963 | 42 24 897 Legs . | . . . Wheels . | . . . Hover . | . . . Flight . | . . . Fastest Speed 50 | 50 160 160 Average Speed 159 | 152 160 160 Slowest Speed 160 | 160 160 160 Overloaded Moves . | . . . Propulsion Burnouts . | . . . Robots Hopped . | . . . Potential Cave-ins 7 | . . 7 Cave-ins Triggered 1 | . . 1 Exploration Rate (%) 21 | 4 7 54 Regions Visited 2 Branch Regions 1 Pre-discovered Areas . | . . . Known Exits Taken . | . . . Unknown Exits Taken 2 | 1 1 . Scrap Searched 2 | . . 2 Spaces Dug 21 | . . 21 Terrain Destroyed 21 | . . 21 Melee 21 | . . 21 Projectile . | . . . AOE . | . . . Terrain Rammed . | . . . Walls Destroyed . | . . . Machines Disabled . | . . . Actions | -11 -10 -10 --------- Run | Yrd Mat Sub Total 1211 | 55 75 1081 Wait 137 | . 52 85 Move 963 | 44 23 896 Hop . | . . . Pick Up 9 | 3 . 6 Fast Attach 10 | 7 . 3 Attach 1 | . . 1 Detach . | . . . Swap 7 | . . 7 Drop 2 | . . 2 Fire 43 | 1 . 42 Melee 39 | . . 39 Ram . | . . . Kick . | . . . Crush . | . . . Escape Stasis . | . . . Rewire . | . . . Trap . | . . . Miscellaneous . | . . . Route ------- -11/Scrapyard -10/Materials -10/Subcaves (discovered 1 exit: [*Mat]) History --------- Turn | Location | Event 63 | -11/Scrapyard | Discovered new exit (range 13) 85 | -11/Scrapyard | Entered Materials 168 | -10/Materials | Discovered new exit (range 5) 174 | -10/Materials | Entered Subcaves 175 | -10/Subcaves | Approached by a straggling Scientist 288 | -10/Subcaves | Discovered new exit (range 14) 292 | -10/Subcaves | Shifting Twisted Machinery released Mak. Axe 314 | -10/Subcaves | Build established: Mutant 926 | -10/Subcaves | Shifting Twisted Machinery released Mak. Laser 1001 | -10/Subcaves | Shifting Twisted Machinery released Sub. Optics 1050 | -10/Subcaves | A swath of the cavern ceiling suddenly collapsed 1105 | -10/Subcaves | A swath of the cavern ceiling suddenly collapsed 1676 | -10/Subcaves | Learned 2 Materials zone layouts 1901 | -10/Subcaves | Crushed by falling debris 1901 | -10/Subcaves | Smashed by cave-in Last Messages --------------- 01717_ Sub. Power Source shoots sparks and powers down. 01718_ Dropped Broken Sub. Power Source. 01737_ Seismic Detector destroyed. 01738_ 6H-OKO(R) destroyed. 01749_ YL-SKQ(R) destroyed. V6-A1C(c): "I think it's somewhere southwest of here" 01757_ Acquired Sub. Optics. 01762_ Acquired 33 matter. 01771_ Acquired Sub. Power Source. 01794_ Acquired 43 matter. V6-A1C(c): "I think it's somewhere southwest of here" 01892_ The unstable cave ceiling collapses. 01901_ Crushed by falling debris. 01901_ Mak. Axe destroyed. 01901_ System corrupted by crushing effect (+4). 01901_ Lgt. Treads destroyed. 01901_ System corrupted by crushing effect (+1). Map ----- +----------------------------------------------------+ | ### ####??????????????????## ##?????? | | " ??# ##?????????????????# ##??????? | | ###??## #?????????????????# # ##?????? | | ??# ## ##?????????????????# #?????? | | #### ##??????????????????# #?????? | | # #???????????????????# ## * #?????? | | ###" ###?????????????????# #?## ##????? | | ####" ##????????????????# #??# #????? | | ####" #????????????????#" #??# ##????? | | "######## ##???????????????#" ##?# #????? | | ""##????# #???????????????##"" ### ! #????? | | """""##??### #????????????????#"""##""*##????? | | """#### # ##???????????????## ###""& #????? | | " #????????????????# ###!="#????? | | ### """""" #????????????????## ##[ "##????? | | ##?###"###"# ##???????????????# [& &"&#?????? | | #????###?#### ##?????????????## &"""##?????? | | ###?????????#" "#????????????##"#""######??????? | | #####?????#"" ###???????????## #####???????????? | | " #?????##### #??????????## ##???????????????? | | ####?????????# #?????????#####????????????????? | | ##????????????###????????## ##?????????????????? | | #???????????????????????## ##??????????????????? | | "#??????????????????????## ##???????????????????? | | ###?????????????????????## ##????????????????????? | | ????????????????????????#@##?????????????????????? | | ????????????????????????###??????????????????????? | | ?????????????????????????????????????????????????? | | ?????????????????????????????????????????????????? | | ?????????????????????????????????????????????????? | | ?????????????????????????????????????????????????? | | ?????????????????????????????????????????????????? | | ?????????????????????????????????????????????????? | | ?????????????????????????????????????????????????? | | ??????????????###??????????????###???????????????? | | ?????###?????## ########?####### ####????????????? | | #????#"#?##??# ## ##? ###??????????? | | #?#### #?# ### #??# #?????####?? | | ###""" #?# ## ##?# #?????## ##? | | "#"#####?# /# # ### ####?## ## ## | | "# #?????## #### ### # ### #### | | """#???#### ### ## ##### " | | """#####" ## ##### #### | | """##"##" #### #??# "#?? | | "## " """ # # ##??# ##??# """"" | | #####"#"" #### ## ###???###???## [ """ | | ##??###""### ##??#########????????????## # ### | | ??????####?#######??????????????????????????####?? | | ?????????????????????????????????????????????????? | | ?????????????????????????????????????????????????? | +----------------------------------------------------+ Best States ------------- Heat Dissipation 25 Energy Generation 15 Energy Capacity 250 Matter Stores 300 Matter Capacity 300 Sight Range 21 Terrain Scan Density 10 Evasion (%) 40 Recoil Reduction 2 Item Schematics ----------------- None Robot Schematics ------------------ None Fabricated ------------ Nothing Repaired ---------- Nothing Studied --------- None Alien Tech Used ----------------- None Achievements -------------- None Challenges ------------ None Game ------ Seed SystemBladeStorm Manual? 0 Play Time 00:11:40 Cumulative 125.3 hours Start 2025.12.30 @ 19:39:54 End 2025.12.30 @ 19:48:47 Sessions 1 Manual Loads 0 Difficulty Rogue Special Mode None Game No. 241 Rogue 241 Adventurer 0 Explorer 0 Win Type - Total 0 Types 0/0/0/0/0/0/0/0/0/0 Lore% 31 Gallery% 48 Achievement% 23 Wizard Run 0 Options --------- Layout 1 ASCII 0 Keyboard 1 Movement Arrows Keybinds 0 Fullscreen 2 Font 24/Smallcaps Map View 50x35 Zoom Use 0% Tactical HUD 1 Map Filters NONE Filters NONE Steam 1 RUN: 0a26f08c-326c-4bb5-9ca3-b24e539b5ae4